fUST/lending_fUST_20250810
["ID","MTS","AMOUNT","RATE_DAILY","PERIOD"]
[378168087,1754760254502,153.0,0.00027534,30]
[378168088,1754760265041,460.3499,0.00020899,2]
[378168089,1754760266041,360.03192141,0.000209,2]
[378168090,1754760267882,1000.0,0.00020546,2]
[378168091,1754760272123,150.0,0.00024429,30]
[378168092,1754760272766,150.0,0.00025593,30]
[378168093,1754760284758,643.0,0.00021512,7]
[378168094,1754760313228,153.0,0.00027534,30]
[378168095,1754760339597,9991.67877769,0.00020547,2]
[378168096,1754760339620,18541.25216351,0.00020547,2]
[378168108,1754760344931,150.0,0.00024425,30]
[378168110,1754760351996,1458.74783649,0.000199,2]
[378168111,1754760352023,8002.60207447,0.000199,2]
[378168112,1754760354939,5000.0,0.00021512,2]
[378168113,1754760370854,5000.0,0.00021512,2]
[378168114,1754760386279,1997.39792553,0.00021512,2]
[378168115,1754760386302,3002.60207447,0.00021512,2]
[378168116,1754760391273,257.31591641,0.00021445,2]
[378168117,1754760402253,5000.0,0.00021512,2]
[378168118,1754760419871,5000.0,0.00021512,2]
[378168119,1754760420268,150.0,0.00024301,30]
[378168124,1754760447073,1098.49798783,0.00019412,2]
[378168125,1754760470689,5641.58402129,0.00020546,2]
[378168126,1754760470712,4358.41597871,0.00020546,2]
[378168133,1754760518967,1267.5717627,0.00020711,2]
[378168134,1754760525943,151.30761096,0.000248,30]
[378168139,1754760535119,9170.03123208,0.000199,2]
[378168140,1754760551074,151.0,0.000209,3]
[378168143,1754760567556,334.194704,0.00020898,2]
[378168144,1754760568571,564.01585106,0.00020899,2]
[378168145,1754760580312,4154.77047145,0.00020546,2]
[378168146,1754760580333,20000.0,0.00020546,2]
[378168147,1754760580354,20000.0,0.00020546,2]
[378168148,1754760580375,20000.0,0.00020546,2]
[378168149,1754760580396,15143.43762555,0.00020546,2]
[378168154,1754760616580,1042.59,0.00030137,120]
[378168194,1754760632831,-300.0,0.00021542,2]
[378168196,1754760632841,-69.70965893,0.00021542,2]
[378168198,1754760632853,-230.29034107,0.00021542,2]
[378168200,1754760632863,-1200.0,0.00021542,2]
[378168202,1754760632872,-1200.0,0.00021543,2]
[378168204,1754760632881,-256.41275393,0.00021543,2]
[378168235,1754760638735,-203.58724607,0.00021543,2]
[378168237,1754760638745,-460.0,0.00021543,2]
[378168238,1754760638755,-156.61275419,0.00021543,2]
[378168239,1754760638842,-303.38724581,0.00021543,2]
[378168240,1754760638851,-912.75,0.00021543,2]
[378168241,1754760638862,-460.0,0.00021543,2]
[378168242,1754760638871,-460.0,0.00021543,2]
[378168243,1754760638881,-492.81380739,0.00021543,2]
[378168244,1754760638890,-460.0,0.00021543,2]
[378168245,1754760638899,-461.31865146,0.00021543,2]
[378168246,1754760638909,-460.0,0.00021543,2]
[378168247,1754760638918,-460.0,0.00021543,2]
[378168248,1754760638929,-460.0,0.00021544,2]
[378168249,1754760638938,-460.0,0.00021544,2]
[378168250,1754760638947,-460.0,0.00021544,2]
[378168251,1754760638957,-460.0,0.00021544,2]
[378168252,1754760638966,-2038.49,0.00021544,2]
[378168253,1754760638976,-460.0,0.00021544,2]
[378168254,1754760638985,-460.0,0.00021544,2]
[378168255,1754760638996,-853.66,0.00021544,2]
[378168256,1754760639011,-460.0,0.00021544,2]
[378168257,1754760639021,-460.0,0.00021544,2]
[378168258,1754760639031,-460.0,0.00021544,2]
[378168259,1754760639043,-460.0,0.00021544,2]
[378168260,1754760639052,-460.0,0.00021544,2]
[378168261,1754760639062,-1605.05,0.00021544,2]
[378168262,1754760639074,-460.0,0.00021544,2]
[378168263,1754760639084,-460.0,0.00021544,2]
[378168264,1754760639094,-265.12653034,0.00021544,2]
[378168265,1754760639103,-1748.2,0.00021544,2]
[378168266,1754760639113,-460.0,0.00021544,2]
[378168267,1754760639122,-460.0,0.00021544,2]
[378168268,1754760639133,-460.0,0.00021544,2]
[378168269,1754760639142,-460.0,0.00021544,2]
[378168270,1754760639152,-460.0,0.00021544,2]
[378168271,1754760639162,-734.63,0.00021544,2]
[378168272,1754760639172,-463.02509615,0.00021544,2]
[378168273,1754760639181,-460.0,0.00021544,2]
[378168274,1754760639191,-463.60323238,0.00021544,2]
[378168275,1754760639200,-460.0,0.00021544,2]
[378168276,1754760639210,-460.0,0.00021544,2]
[378168277,1754760639220,-460.0,0.00021544,2]
[378168278,1754760639229,-536.11,0.00021544,2]
[378168279,1754760639239,-460.0,0.00021544,2]
[378168280,1754760639248,-547.32,0.00021544,2]
[378168281,1754760639258,-460.0,0.00021544,2]
[378168282,1754760639268,-460.0,0.00021544,2]
[378168283,1754760639278,-460.0,0.00021544,2]
[378168284,1754760639287,-1497.02,0.00021544,2]
[378168285,1754760639297,-460.0,0.00021544,2]
[378168286,1754760639307,-460.0,0.00021544,2]
[378168287,1754760639316,-460.0,0.00021544,2]
[378168288,1754760639326,-460.0,0.00021544,2]
[378168289,1754760639335,-460.0,0.00021544,2]
[378168290,1754760639344,-460.0,0.00021544,2]
[378168291,1754760639353,-460.0,0.00021544,2]
[378168292,1754760639362,-460.0,0.00021544,2]
[378168293,1754760639372,-460.0,0.00021544,2]
[378168294,1754760639381,-820.20000026,0.00021544,2]
[378168295,1754760639390,-460.0,0.00021545,2]
[378168296,1754760639399,-460.0,0.00021545,2]
[378168297,1754760639409,-460.0,0.00021545,2]
[378168298,1754760639418,-460.0,0.00021545,2]
[378168299,1754760639427,-460.0,0.00021545,2]
[378168300,1754760639436,-460.0,0.00021545,2]
[378168301,1754760639446,-314.33880988,0.00021545,2]
[378168302,1754760639455,-460.0,0.00021545,2]
[378168303,1754760639464,-460.0,0.00021545,2]
[378168304,1754760639474,-460.0,0.00021545,2]
[378168305,1754760639484,-434.53011483,0.00021545,2]
[378168306,1754760639493,-460.0,0.00021545,2]
[378168307,1754760639502,-460.0,0.00021545,2]
[378168308,1754760639512,-460.0,0.00021545,2]
[378168309,1754760639521,-460.0,0.00021545,2]
[378168310,1754760639532,-460.0,0.00021545,2]
[378168311,1754760639542,-460.0,0.00021545,2]
[378168312,1754760639551,-460.0,0.00021545,2]
[378168313,1754760639560,-460.0,0.00021545,2]
[378168314,1754760639570,-460.0,0.00021545,2]
[378168315,1754760639579,-461.24791122,0.00021545,2]
[378168316,1754760639593,-460.0,0.00021545,2]
[378168317,1754760639603,-460.0,0.00021545,2]
[378168318,1754760639612,-460.0,0.00021545,2]
[378168319,1754760639621,-460.0,0.00021545,2]
[378168320,1754760639630,-460.0,0.00021545,2]
[378168321,1754760639639,-621.04,0.00021545,2]
[378168322,1754760639649,-460.0,0.00021545,2]
[378168323,1754760639658,-390.67951853,0.00021545,2]
[378168324,1754760639667,-460.0,0.00021545,2]
[378168325,1754760639676,-460.0,0.00021545,2]
[378168326,1754760639686,-460.0,0.00021545,2]
[378168327,1754760639696,-460.0,0.00021545,2]
[378168328,1754760639706,-460.0,0.00021545,2]
[378168329,1754760639715,-460.0,0.00021545,2]
[378168330,1754760639730,-460.0,0.00021545,2]
[378168331,1754760639741,-460.0,0.00021545,2]
[378168332,1754760639751,-460.0,0.00021545,2]
[378168333,1754760639761,-460.0,0.00021545,2]
[378168334,1754760639770,-460.0,0.00021545,2]
[378168335,1754760639783,-319.70246419,0.00021545,2]
[378168336,1754760639792,-460.0,0.00021545,2]
[378168337,1754760639802,-460.0,0.00021545,2]
[378168338,1754760639811,-460.0,0.00021545,2]
[378168339,1754760639820,-460.0,0.00021545,2]
[378168340,1754760639830,-460.0,0.00021545,2]
[378168341,1754760639840,-460.0,0.00021545,2]
[378168342,1754760639850,-460.0,0.00021545,2]
[378168343,1754760639859,-460.0,0.00021545,2]
[378168344,1754760639868,-557.21076336,0.00021545,2]
[378168345,1754760639878,-460.0,0.00021545,2]
[378168346,1754760639887,-460.0,0.00021545,2]
[378168347,1754760639896,-463.9915542,0.00021545,2]
[378168348,1754760639905,-460.0,0.00021545,2]
[378168349,1754760639915,-460.0,0.00021545,2]
[378168350,1754760639924,-460.0,0.00021545,2]
[378168351,1754760639934,-460.0,0.00021545,2]
[378168352,1754760639943,-460.0,0.00021545,2]
[378168353,1754760639952,-460.0,0.00021545,2]
[378168354,1754760639962,-490.67,0.00021545,2]
[378168355,1754760639971,-464.5095668,0.00021545,2]
[378168356,1754760639980,-948.6,0.00021545,2]
[378168357,1754760639989,-460.0,0.00021545,2]
[378168358,1754760640000,-460.0,0.00021545,2]
[378168359,1754760640015,-460.0,0.00021545,2]
[378168360,1754760640024,-460.39430981,0.00021545,2]
[378168361,1754760640033,-460.0,0.00021545,2]
[378168362,1754760640042,-445.03411262,0.00021545,2]
[378168363,1754760640054,-460.0,0.00021545,2]
[378168364,1754760640065,-460.0,0.00021545,2]
[378168365,1754760640074,-460.0,0.00021545,2]
[378168366,1754760640086,-460.0,0.00021545,2]
[378168367,1754760640097,-1597.6,0.00021545,2]
[378168368,1754760640107,-460.0,0.00021545,2]
[378168369,1754760640117,-464.59165005,0.00021545,2]
[378168370,1754760640128,-460.0,0.00021545,2]
[378168371,1754760640139,-460.0,0.00021545,2]
[378168372,1754760640148,-500.0,0.00021545,2]
[378168373,1754760640158,-460.0,0.00021545,2]
[378168374,1754760640167,-460.0,0.00021545,2]
[378168375,1754760640176,-460.0,0.00021545,2]
[378168376,1754760640186,-460.0,0.00021545,2]
[378168377,1754760640196,-460.0,0.00021545,2]
[378168378,1754760640207,-460.0,0.00021545,2]
[378168379,1754760640217,-460.0,0.00021545,2]
[378168380,1754760640227,-460.0,0.00021545,2]
[378168381,1754760640236,-500.0,0.00021545,2]
[378168382,1754760640247,-460.0,0.00021545,2]
[378168383,1754760640256,-460.0,0.00021545,2]
[378168384,1754760640265,-460.0,0.00021545,2]
[378168385,1754760640275,-3785.91,0.00021545,2]
[378168386,1754760640284,-460.0,0.00021545,2]
[378168387,1754760640293,-460.0,0.00021545,2]
[378168388,1754760640303,-460.0,0.00021545,2]
[378168389,1754760640313,-461.40228745,0.00021545,2]
[378168390,1754760640323,-460.0,0.00021545,2]
[378168391,1754760640332,-460.0,0.00021545,2]
[378168392,1754760640341,-460.0,0.00021545,2]
[378168393,1754760640351,-460.0,0.00021545,2]
[378168394,1754760640360,-462.81553716,0.00021545,2]
[378168395,1754760640369,-165.55131987,0.00021545,2]
[378168396,1754760640378,-460.0,0.00021545,2]
[378168397,1754760640387,-460.0,0.00021545,2]
[378168399,1754760640396,-460.0,0.00021545,2]
[378168400,1754760640542,-460.0,0.00021545,2]
[378168401,1754760640552,-460.0,0.00021545,2]
[378168402,1754760640562,-460.0,0.00021545,2]
[378168403,1754760640571,-985.24,0.00021545,2]
[378168404,1754760640580,-460.0,0.00021545,2]
[378168405,1754760640589,-460.0,0.00021545,2]
[378168406,1754760640599,-460.0,0.00021545,2]
[378168407,1754760640608,-471.03183727,0.00021545,2]
[378168408,1754760640617,-230.58401822,0.00021545,2]
[378168409,1754760640626,-462.39815495,0.00021545,2]
[378168410,1754760640636,-460.0,0.00021545,2]
[378168411,1754760640645,-460.0,0.00021545,2]
[378168412,1754760640655,-460.0,0.00021545,2]
[378168413,1754760640664,-612.98,0.00021545,2]
[378168414,1754760640673,-460.0,0.00021545,2]
[378168415,1754760640682,-460.0,0.00021545,2]
[378168416,1754760640691,-594.80689381,0.00021545,2]
[378168417,1754760640701,-678.47,0.00021545,2]
[378168418,1754760640710,-461.1280805,0.00021545,2]
[378168419,1754760640719,-462.6704185,0.00021545,2]
[378168420,1754760640728,-460.0,0.00021545,2]
[378168421,1754760640737,-460.0,0.00021545,2]
[378168422,1754760640747,-460.0,0.00021545,2]
[378168423,1754760640756,-460.0,0.00021545,2]
[378168424,1754760640765,-460.0,0.00021545,2]
[378168425,1754760640775,-460.0,0.00021545,2]
[378168426,1754760640784,-460.0,0.00021545,2]
[378168427,1754760640793,-1095.78,0.00021545,2]
[378168428,1754760640802,-460.0,0.00021545,2]
[378168429,1754760640812,-460.0,0.00021545,2]
[378168430,1754760640821,-460.0,0.00021545,2]
[378168431,1754760640830,-460.0,0.00021545,2]
[378168432,1754760640839,-460.0,0.00021545,2]
[378168433,1754760640849,-1079.1,0.00021545,2]
[378168434,1754760640858,-460.0,0.00021545,2]
[378168435,1754760640868,-460.0,0.00021545,2]
[378168436,1754760640877,-460.0,0.00021545,2]
[378168437,1754760640886,-460.0,0.00021545,2]
[378168438,1754760640895,-460.0,0.00021545,2]
[378168439,1754760640904,-192.14130852,0.00021545,2]
[378168440,1754760640913,-460.0,0.00021545,2]
[378168441,1754760640922,-460.0,0.00021545,2]
[378168442,1754760640931,-460.0,0.00021545,2]
[378168443,1754760640940,-464.7436897,0.00021545,2]
[378168444,1754760640950,-460.0,0.00021545,2]
[378168445,1754760640959,-460.0,0.00021545,2]
[378168446,1754760640967,-460.0,0.00021545,2]
[378168447,1754760640976,-579.29,0.00021545,2]
[378168448,1754760640986,-460.0,0.00021545,2]
[378168449,1754760640995,-460.0,0.00021545,2]
[378168450,1754760641007,-463.87292254,0.00021545,2]
[378168451,1754760641016,-460.0,0.00021545,2]
[378168452,1754760641025,-460.0,0.00021545,2]
[378168453,1754760641035,-460.0,0.00021545,2]
[378168454,1754760641045,-460.0,0.00021545,2]
[378168455,1754760641054,-886.05,0.00021545,2]
[378168456,1754760641063,-460.0,0.00021545,2]
[378168457,1754760641072,-460.0,0.00021545,2]
[378168458,1754760641084,-465.46,0.00021545,2]
[378168459,1754760641094,-460.0,0.00021546,2]
[378168460,1754760641103,-460.0,0.00021546,2]
[378168462,1754760641112,-460.0,0.00021546,2]
[378168463,1754760641122,-460.0,0.00021546,2]
[378168464,1754760641131,-460.0,0.00021546,2]
[378168465,1754760641140,-460.0,0.00021546,2]
[378168467,1754760641149,-460.0,0.00021546,2]
[378168468,1754760641159,-460.0,0.00021546,2]
[378168470,1754760641168,-460.0,0.00021546,2]
[378168472,1754760641178,-460.0,0.00021546,2]
[378168473,1754760641187,-466.25,0.00021546,2]
[378168474,1754760641196,-460.0,0.00021546,2]
[378168475,1754760641205,-460.0,0.00021546,2]
[378168476,1754760641215,-460.0,0.00021546,2]
[378168478,1754760641224,-596.8,0.00021546,2]
[378168479,1754760641233,-460.0,0.00021546,2]
[378168481,1754760641242,-460.0,0.00021546,2]
[378168482,1754760641251,-460.0,0.00021546,2]
[378168483,1754760641261,-468.44001497,0.00021546,2]
[378168484,1754760641270,-460.0,0.00021546,2]
[378168485,1754760641280,-461.01866813,0.00021546,2]
[378168486,1754760641289,-460.0,0.00021546,2]
[378168488,1754760641299,-460.0,0.00021546,2]
[378168489,1754760641308,-562.22,0.00021546,2]
[378168490,1754760641317,-489.24,0.00021546,2]
[378168491,1754760641327,-500.0,0.00021546,2]
[378168492,1754760641337,-500.0,0.00021546,2]
[378168494,1754760641346,-500.0,0.00021546,2]
[378168496,1754760641355,-460.0,0.00021546,2]
[378168498,1754760641364,-460.0,0.00021546,2]
[378168499,1754760641374,-1110.78,0.00021546,2]
[378168500,1754760641383,-500.0,0.00021546,2]
[378168501,1754760641393,-460.0,0.00021546,2]
[378168502,1754760641402,-460.0,0.00021546,2]
[378168503,1754760641411,-1309.57,0.00021546,2]
[378168504,1754760641420,-460.0,0.00021546,2]
[378168505,1754760641429,-1352.75,0.00021546,2]
[378168506,1754760641439,-460.0,0.00021546,2]
[378168507,1754760641448,-460.0,0.00021546,2]
[378168508,1754760641457,-460.0,0.00021546,2]
[378168509,1754760641467,-460.0,0.00021546,2]
[378168510,1754760641476,-472.29365182,0.00021546,2]
[378168511,1754760641485,-460.0,0.00021546,2]
[378168512,1754760641495,-460.0,0.00021546,2]
[378168513,1754760641504,-460.0,0.00021546,2]
[378168514,1754760641513,-460.0,0.00021547,2]
[378168515,1754760641522,-460.0,0.00021547,2]
[378168516,1754760641532,-460.0,0.00021547,2]
[378168517,1754760641541,-460.0,0.00021547,2]
[378168518,1754760641550,-460.0,0.00021547,2]
[378168519,1754760641559,-460.0,0.00021547,2]
[378168520,1754760641569,-463.24663621,0.00021547,2]
[378168521,1754760641579,-450.0,0.00021547,2]
[378168522,1754760641588,-460.0,0.00021547,2]
[378168523,1754760641597,-460.0,0.00021547,2]
[378168524,1754760641607,-460.0,0.00021547,2]
[378168525,1754760641616,-460.0,0.00021547,2]
[378168526,1754760641625,-460.0,0.00021547,2]
[378168527,1754760641635,-460.00000001,0.00021547,2]
[378168528,1754760641644,-460.0,0.00021547,2]
[378168529,1754760641653,-460.0,0.00021547,2]
[378168530,1754760641662,-460.0,0.00021547,2]
[378168531,1754760641671,-460.0,0.00021547,2]
[378168532,1754760641680,-460.0,0.00021547,2]
[378168533,1754760641690,-465.60621705,0.00021547,2]
[378168534,1754760641699,-466.2968668,0.00021547,2]
[378168535,1754760641708,-693.5,0.00021547,2]
[378168536,1754760641717,-460.0,0.00021547,2]
[378168537,1754760641727,-460.0,0.00021547,2]
[378168538,1754760641735,-464.75964567,0.00021547,2]
[378168539,1754760641746,-460.0,0.00021547,2]
[378168540,1754760641755,-460.0,0.00021547,2]
[378168541,1754760641764,-487.96270914,0.00021547,2]
[378168542,1754760641773,-460.0,0.00021547,2]
[378168543,1754760641784,-460.0,0.00021547,2]
[378168544,1754760641793,-460.0,0.00021547,2]
[378168545,1754760641802,-460.0,0.00021547,2]
[378168546,1754760641811,-460.0,0.00021547,2]
[378168547,1754760641820,-500.0,0.00021547,2]
[378168548,1754760641829,-500.0,0.00021547,2]
[378168549,1754760641838,-500.0,0.00021547,2]
[378168550,1754760641847,-460.0,0.00021547,2]
[378168551,1754760641856,-460.0,0.00021547,2]
[378168552,1754760641865,-460.0,0.00021547,2]
[378168553,1754760641874,-460.0,0.00021547,2]
[378168554,1754760641887,-500.0,0.00021547,2]
[378168555,1754760641900,-500.0,0.00021548,2]
[378168556,1754760641915,-500.0,0.00021548,2]
[378168557,1754760641928,-375.35733176,0.00021549,2]
[378168558,1754760641940,-623.88,0.00021645,3]
[378168559,1754760641951,-9170.03123197,0.00021655,2]
[378168560,1754760641962,-1075.28920853,0.00021699,2]
[378168561,1754760641975,-207.95,0.00021799,3]
[378168562,1754760641987,-415.91,0.00021807,3]
[378168563,1754760642001,-1129.01,0.00021809,3]
[378168564,1754760642015,-564.51,0.00021809,3]
[378168565,1754760642027,-282.25,0.00021809,3]
[378168566,1754760642039,-846.79,0.00021809,3]
[378168567,1754760642052,-14284.36019672,0.00021817,2]
[378168568,1754760642064,-460.0,0.00021817,2]
[378168569,1754760642079,-460.0,0.00021817,2]
[378168570,1754760642090,-460.0,0.00021817,2]
[378168571,1754760642102,-912.75,0.00021817,2]
[378168572,1754760642114,-460.0,0.00021817,2]
[378168573,1754760642125,-460.0,0.00021817,2]
[378168574,1754760642136,-460.0,0.00021817,2]
[378168575,1754760642146,-460.0,0.00021818,2]
[378168576,1754760642158,-460.0,0.00021818,2]
[378168577,1754760642171,-2038.49,0.00021818,2]
[378168578,1754760642182,-460.0,0.00021818,2]
[378168579,1754760642193,-460.0,0.00021818,2]
[378168580,1754760642204,-853.66,0.00021818,2]
[378168581,1754760642213,-460.0,0.00021818,2]
[378168582,1754760642224,-460.0,0.00021818,2]
[378168583,1754760642235,-460.0,0.00021818,2]
[378168584,1754760642246,-1605.05,0.00021818,2]
[378168585,1754760642258,-460.0,0.00021818,2]
[378168586,1754760642270,-460.0,0.00021818,2]
[378168587,1754760642283,-1748.2,0.00021818,2]
[378168588,1754760642293,-460.0,0.00021818,2]
[378168589,1754760642306,-460.0,0.00021818,2]
[378168590,1754760642318,-460.0,0.00021818,2]
[378168591,1754760642330,-460.0,0.00021818,2]
[378168592,1754760642342,-460.0,0.00021818,2]
[378168593,1754760642355,-734.63,0.00021818,2]
[378168594,1754760642365,-576.279705,0.00021818,2]
[378168595,1754760642375,-460.0,0.00021818,2]
[378168596,1754760642386,-460.0,0.00021818,2]
[378168597,1754760642395,-460.0,0.00021818,2]
[378168598,1754760642405,-536.11,0.00021818,2]
[378168599,1754760642417,-460.0,0.00021818,2]
[378168600,1754760642429,-547.32,0.00021818,2]
[378168601,1754760642441,-460.0,0.00021818,2]
[378168602,1754760642454,-460.0,0.00021818,2]
[378168603,1754760642464,-1497.02,0.00021818,2]
[378168604,1754760642477,-460.0,0.00021818,2]
[378168605,1754760642489,-460.0,0.00021818,2]
[378168606,1754760642499,-460.0,0.00021818,2]
[378168607,1754760642511,-460.0,0.00021818,2]
[378168608,1754760642524,-460.0,0.00021818,2]
[378168609,1754760642534,-483.49259868,0.00021818,2]
[378168610,1754760642545,-460.0,0.00021819,2]
[378168611,1754760642555,-473.74,0.00021819,2]
[378168612,1754760642566,-460.0,0.00021819,2]
[378168613,1754760642576,-446.90358357,0.00021819,2]
[378168614,1754760642587,-467.1671852,0.00021819,2]
[378168615,1754760642598,-460.0,0.00021819,2]
[378168616,1754760642608,-496.69664594,0.00021819,2]
[378168617,1754760642619,-460.0,0.00021819,2]
[378168618,1754760642630,-460.0,0.00021819,2]
[378168619,1754760642641,-460.0,0.00021819,2]
[378168620,1754760642651,-460.0,0.00021819,2]
[378168621,1754760642662,-460.0,0.00021819,2]
[378168622,1754760642674,-460.0,0.00021819,2]
[378168623,1754760642684,-460.0,0.00021819,2]
[378168624,1754760642695,-621.04,0.00021819,2]
[378168625,1754760642706,-460.0,0.00021819,2]
[378168626,1754760642717,-460.0,0.00021819,2]
[378168627,1754760642729,-460.0,0.00021819,2]
[378168628,1754760642742,-460.0,0.00021819,2]
[378168629,1754760642753,-460.0,0.00021819,2]
[378168630,1754760642763,-460.0,0.00021819,2]
[378168631,1754760642775,-460.0,0.00021819,2]
[378168632,1754760642786,-460.0,0.00021819,2]
[378168633,1754760642797,-460.0,0.00021819,2]
[378168634,1754760642807,-460.0,0.00021819,2]
[378168635,1754760642818,-460.0,0.00021819,2]
[378168636,1754760642829,-460.0,0.00021819,2]
[378168637,1754760642840,-466.49663132,0.00021819,2]
[378168638,1754760642850,-460.0,0.00021819,2]
[378168639,1754760642861,-460.0,0.00021819,2]
[378168640,1754760642872,-460.0,0.00021819,2]
[378168641,1754760642882,-460.0,0.00021819,2]
[378168642,1754760642894,-460.0,0.00021819,2]
[378168643,1754760642904,-460.0,0.00021819,2]
[378168644,1754760642915,-460.0,0.00021819,2]
[378168645,1754760642926,-490.67,0.00021819,2]
[378168646,1754760642936,-948.6,0.00021819,2]
[378168647,1754760642947,-460.0,0.00021819,2]
[378168648,1754760642957,-460.0,0.00021819,2]
[378168649,1754760642967,-460.0,0.00021819,2]
[378168650,1754760642979,-460.0,0.00021819,2]
[378168651,1754760642990,-1597.6,0.00021819,2]
[378168652,1754760643001,-460.0,0.00021819,2]
[378168653,1754760643013,-460.0,0.00021819,2]
[378168654,1754760643024,-460.0,0.00021819,2]
[378168655,1754760643035,-460.0,0.00021819,2]
[378168656,1754760643046,-460.0,0.00021819,2]
[378168657,1754760643057,-460.0,0.00021819,2]
[378168658,1754760643068,-460.0,0.00021819,2]
[378168659,1754760643079,-460.0,0.00021819,2]
[378168660,1754760643089,-514.64438644,0.00021819,2]
[378168661,1754760643100,-463.52747182,0.00021819,2]
[378168662,1754760643111,-3785.91,0.00021819,2]
[378168663,1754760643122,-462.89016438,0.00021819,2]
[378168664,1754760643133,-460.0,0.00021819,2]
[378168665,1754760643144,-460.0,0.00021819,2]
[378168666,1754760643154,-486.97406083,0.00021819,2]
[378168667,1754760643165,-460.0,0.00021819,2]
[378168668,1754760643176,-460.0,0.00021819,2]
[378168669,1754760643187,-460.0,0.00021819,2]
[378168670,1754760643198,-460.0,0.00021819,2]
[378168671,1754760643208,-460.0,0.00021819,2]
[378168672,1754760643218,-985.24,0.00021819,2]
[378168673,1754760643229,-460.0,0.00021819,2]
[378168674,1754760643240,-315.08718921,0.00021819,2]
[378168675,1754760643251,-460.0,0.00021819,2]
[378168676,1754760643262,-213.2644599,0.00021819,2]
[378168677,1754760643274,-460.0,0.00021819,2]
[378168678,1754760643285,-612.98,0.00021819,2]
[378168679,1754760643295,-460.0,0.00021819,2]
[378168680,1754760643306,-460.0,0.00021819,2]
[378168681,1754760643316,-678.47,0.00021819,2]
[378168682,1754760643327,-460.0,0.00021819,2]
[378168684,1754760643338,-373.46689022,0.00021819,2]
[378168686,1754760643348,-460.0,0.00021819,2]
[378168688,1754760643359,-1095.78,0.00021819,2]
[378168690,1754760643370,-460.0,0.00021819,2]
[378168692,1754760643380,-460.0,0.00021819,2]
[378168695,1754760643390,-460.0,0.00021819,2]
[378168696,1754760643401,-460.0,0.00021819,2]
[378168697,1754760643412,-1079.1,0.00021819,2]
[378168698,1754760643423,-460.0,0.00021819,2]
[378168699,1754760643434,-460.0,0.00021819,2]
[378168701,1754760643445,-460.0,0.00021819,2]
[378168703,1754760643455,-460.0,0.00021819,2]
[378168711,1754760643628,-460.0,0.00021819,2]
[378168714,1754760643647,-460.0,0.00021819,2]
[378168716,1754760643657,-460.0,0.00021819,2]
[378168718,1754760643667,-579.29,0.00021819,2]
[378168720,1754760643676,-460.0,0.00021819,2]
[378168722,1754760643685,-465.05589894,0.00021819,2]
[378168724,1754760643694,-460.0,0.00021819,2]
[378168726,1754760643704,-886.05,0.00021819,2]
[378168728,1754760643713,-611.51010086,0.00021819,2]
[378168730,1754760643723,-611.51010086,0.00021819,2]